Cogmind - Beta 15 @@@ ROGUE MODE // 2025.06.19 @ 00:28:09 Player: Kyrax Result: Destroyed by S4-EIT(j) with Overtuned Pulse Rifle Performance ------------- Evolutions (0) 0 Regions Visited (3) 600 Robots Destroyed (4) 20 Value Destroyed (58) 58 Prototype IDs (6) 120 Alien Tech Used (0) 0 Bonus (800) 800 TOTAL SCORE: 1598 Bonus ------- Registered with UFD 300 Met Optimus in HQ 500 Cogmind --------- Core Integrity 0/250 Matter 290/300 Energy 62/100 System Corruption 0% Temperature Danger (414) Movement Core (50) Location -7/Scraptown Parts ------- > --- POWER (1) -------- (None) > --- PROPULSION (2) --- (None) > --- UTILITY (2) ------ Improved System Shield > --- WEAPON (2) ------- (None) > --- INVENTORY (5) ---- Scrap Suit Cooling System Matter Compressor (99) Peak State ------------ > --- POWER ------------ Light Ion Engine > --- PROPULSION ------- Nuclear Pulse Thruster > --- UTILITY ---------- Cooling System Improved System Shield > --- WEAPON ----------- Particle Gun > --- INVENTORY -------- Scrap Suit Matter Compressor Particle Gun [Rating: 16] Favorites ----------- Power Light Ion Engine Engine Light Ion Engine Propulsion Wheel Wheel Wheel Flight Unit Nuclear Pulse Thruster Utility Medium Matter Pod Device Cooling System Storage Medium Matter Pod Hackware Improved System Shield Weapon Particle Gun Energy Gun Particle Gun Ballistic Gun Assault Rifle Build | -11 -10 -10 -7 ------- Run | Yrd Mat Sub Scr Slots Evolved . | . . . . Power . | . . . . Propulsion . | . . . . Utility . | . . . . Weapon . | . . . . Parts Attached 12 | 6 2 . 4 Power 1 | 1 . . . Engine 1 | 1 . . . Core . | . . . . Reactor . | . . . . Propulsion 3 | 2 . . 1 Treads . | . . . . Leg . | . . . . Wheel 2 | 2 . . . Hover . | . . . . Flight 1 | . . . 1 Utility 4 | 1 . . 3 Device 1 | . . . 1 Storage 2 | 1 . . 1 Processor . | . . . . Hackware 1 | . . . 1 Protection . | . . . . Artifact . | . . . . Weapon 4 | 2 2 . . Energy Gun 2 | . 2 . . Energy Cannon . | . . . . Ballistic Gun 2 | 2 . . . Ballistic Cannon . | . . . . Launcher . | . . . . Special Weapon . | . . . . Impact Weapon . | . . . . Slashing Weapon . | . . . . Piercing Weapon . | . . . . Special Melee Weapon . | . . . . Unidentified Prototypes . | . . . . Parts Lost 4 | . . . 4 Power 1 | . . . 1 Propulsion 1 | . . . 1 Utility . | . . . . Weapon 2 | . . . 2 Highest Loss Streak 4 | . . . 4 To Critical Strikes . | . . . . Average Backups 4 | 1 4 5 4 Power 1 | . 2 2 1 Propulsion . | . . . . Utility . | . . . . Weapon 2 | . 2 3 2 Tool/Special . | . . . . Unused Backups 5 | . 1 . 4 Power 2 | . . . 2 Propulsion . | . . . . Utility 2 | . 1 . 1 Weapon 1 | . . . 1 Tool/Special . | . . . . Average Slot Usage (%) 71 | . 85 85 59 Engine 13 | . 14 14 13 Wheel 23 | . 28 28 19 Flight 2 | . . . 4 Device 3 | . . . 6 Storage 11 | . 14 14 9 Hackware 2 | . . . 4 Energy Gun 12 | . 24 28 1 Peak Build Rating 16 | 6 8 8 16 Average Rating 8 | 4 7 8 9 On Entrance 5 | . 6 8 8 Naked Turns . | . . . . Heaviest Build 11 | 9 11 11 11 Greatest Support 20 | 20 20 20 20 Greatest Overweight (x) . | . . . . Average Overweight (x) . | . . . . Largest Inventory Capacity 5 | 5 5 5 5 Average Capacity 5 | 5 5 5 5 Most Carried 5 | 4 5 5 5 Average Carried 4 | 1 4 5 4 Final Capacity 5 | 5 5 5 5 Final Carried 5 | 4 5 5 4 Class Distribution -------------------- 100% | Mutant Dominant Class ---------------- Mutant | -10/Materials Mutant | -10/Subcaves Mutant | -7/Scraptown Resources | -11 -10 -10 -7 ----------- Run | Yrd Mat Sub Scr Matter Collected 459 | 362 48 . 49 Remotely . | . . . . Salvage Created 99 | 71 28 . . Parts 7 | 6 1 . . Haulers Intercepted . | . . . . Recyclers Shooed . | . . . . Parts Field Recycled . | . . . . Retrieved Matter . | . . . . Parts Self-Destructed . | . . . . Prevented . | . . . . Kills | -11 -10 -10 -7 ------- Run | Yrd Mat Sub Scr Combat Hostiles Destroyed 1 | 1 . . . Guns 1 | 1 . . . Classes Destroyed 4 | 3 1 . . Worker 1 | 1 . . . Tunneler 1 | 1 . . . Watcher 1 | . 1 . . Grunt 1 | 1 . . . Best Kill Streak 2 | 2 1 . . Combat Bots Only 1 | 1 . . . Max Kills in Single Turn 1 | 1 1 . . Gunslinging . | . . . . Exploded . | . . . . Melee . | . . . . Uniques/NPCs Destroyed . | . . . . Combat | -11 -10 -10 -7 -------- Run | Yrd Mat Sub Scr Hostile Shots Fired 32 | 3 . . 29 Missed 10 | 2 . . 8 Hits 22 | 1 . . 21 Melee 5 | . . . 5 Projectile 17 | 1 . . 16 Critical Strikes 1 | . . . 1 Damage Taken 521 | 10 . 47 464 Core 255 | . . 11 244 Absorbed by Shields . | . . . . Core Remaining (%) 100 | 100 . . . Volleys Fired 21 | 7 2 . 12 Largest 2 | 2 2 . 1 Hottest 130 | 40 130 . 65 Shots Fired 26 | 10 4 . 12 Gun 26 | 10 4 . 12 Cannon . | . . . . Launcher . | . . . . Special . | . . . . Kinetic 10 | 10 . . . Thermal 16 | . 4 . 12 Explosive . | . . . . Electromagnetic . | . . . . Robot Hit Streak 10 | 9 10 . 7 Robot Miss Streak 1 | . 1 . 1 Penetration Max . | . . . . Secondary Targets . | . . . . Shots Hit Robots 21 | 9 3 . 9 Core Hits 7 | 4 1 . 2 Critical Kills . | . . . . Critical Parts Destroyed . | . . . . Critical Strikes 2 | . 1 . 1 Burn 2 | . 1 . 1 Melee Attacks . | . . . . Impact . | . . . . Slashing . | . . . . Piercing . | . . . . Sneak Attacks . | . . . . Combat Hostiles . | . . . . Follow-up Attacks . | . . . . Damage Inflicted 338 | 114 48 . 176 Guns 338 | 114 48 . 176 Cannons . | . . . . Explosions . | . . . . Melee . | . . . . Ramming . | . . . . Kinetic 114 | 114 . . . Thermal 224 | . 48 . 176 Explosive . | . . . . Electromagnetic . | . . . . Impact . | . . . . Slashing . | . . . . Piercing . | . . . . Highest Corruption . | . . . . Average Corruption . | . . . . Corruption Purged . | . . . . Corruption Blocked . | . . . . Overload Shots . | . . . . Overflow Damage . | . . . . Projectiles . | . . . . Explosions . | . . . . Melee . | . . . . Knockbacks . | . . . . Impact . | . . . . Kinetic . | . . . . Secondary . | . . . . Self-Inflicted Damage . | . . . . Shots . | . . . . Rammed . | . . . . Targets Rammed . | . . . . Kicked . | . . . . Crushed . | . . . . Highest Temperature 365 | . 118 . 365 Average Temperature 146 | . 63 . 188 Received Heat Transfer 223 | 6 . . 217 Effects 1 | . . . 1 Energy Bleed 1 | . . . 1 Siege Activations . | . . . . Martial Activations . | . . . . Shielding Activations . | . . . . Robots Disrupted . | . . . . Combat Hostiles . | . . . . Robots Corrupted . | . . . . Combat Hostiles . | . . . . Parts Fried . | . . . . Impact Corruptions . | . . . . Robots Melted . | . . . . Combat Hostiles . | . . . . Parts Melted . | . . . . Heat Transferred 630 | . 185 . 445 Parts Sabotaged . | . . . . Parts Stolen . | . . . . Parts Stripped . | . . . . Power Chain Reactions . | . . . . Alert | -11 -10 -10 -7 ------- Run | Yrd Mat Sub Scr Maximum Alert Level . | . . . . Low Security (%) 100 | 100 100 . . Level 1 . | . . . . Level 2 . | . . . . Level 3 . | . . . . Level 4 . | . . . . Level 5 . | . . . . High Security . | . . . . Max Security . | . . . . Peak Influence 25 | 25 9 . . Initial 9 | . 9 . . Average 2 | 5 1 . . Influence Increases 37 | 30 7 . . Destroy 0b10 Robot/C 20 | 20 . . . Destroy 0b10 Robot/NC 15 | 10 5 . . Destroy Leader 2 | . 2 . . Influence Decreases 37 | 15 22 . . Entered New Map 6 | . 6 . . Time Decay 31 | 15 16 . . Squads Dispatched . | . . . . Investigation . | . . . . Extermination . | . . . . Reinforcement . | . . . . Assault . | . . . . Garrison . | . . . . Intercept . | . . . . Searches Triggered . | . . . . Construction Impeded . | . . . . Haulers Reinforced . | . . . . Active Scanning Responses . | . . . . Cargo Convoy Interrupts . | . . . . Stealth | -11 -10 -10 -7 --------- Run | Yrd Mat Sub Scr Distress Signals 1 | . 1 . . Communications Jammed . | . . . . Distress Signals . | . . . . Times Spotted 11 | 1 2 . 8 Peak Tracking Total 7 | 1 2 . 7 Tactical Retreats 2 | . . . 2 Traps | -11 -10 -10 -7 ------- Run | Yrd Mat Sub Scr Traps Triggered 1 | . . 1 . Indirectly . | . . . . Trap Hack Attempts . | . . . . Triggered . | . . . . Disarmed . | . . . . Reprogrammed . | . . . . Reused . | . . . . Traps Extracted . | . . . . Installed . | . . . . Triggered . | . . . . Machines | -11 -10 -10 -7 ---------- Run | Yrd Mat Sub Scr Machines Disabled . | . . . . Max in Single Turn . | . . . . Machines Repaired . | . . . . Machines Dismantled . | . . . . Machines Sabotaged . | . . . . Overloaded Fab Kills . | . . . . Hacking | -11 -10 -10 -7 --------- Run | Yrd Mat Sub Scr Machines Accessed 4 | . . 1 3 Terminals . | . . . . Fabricators . | . . . . Repair Stations . | . . . . Recycling Units . | . . . . Scanalyzers . | . . . . Garrison Access . | . . . . Total Hacks 38 | . . 4 34 Successful 38 | . . 4 34 Failed . | . . . . Catastrophic . | . . . . Database Lockouts . | . . . . Manual 2 | . . . 2 Terminals . | . . . . Fabricators . | . . . . Repair Stations . | . . . . Recycling Units . | . . . . Scanalyzers . | . . . . Garrison Access . | . . . . Terminal Hacks 38 | . . 4 34 Record 38 | . . 4 34 Fabricator Hacks . | . . . . Repair Station Hacks . | . . . . Recycling Unit Hacks . | . . . . Scanalyzer . | . . . . Garrison Access Hacks . | . . . . Unauthorized Hacks . | . . . . Terminals . | . . . . Fabricators . | . . . . Repair Stations . | . . . . Recycling Units . | . . . . Scanalyzers . | . . . . Garrison Access . | . . . . Data Cores Recovered . | . . . . Used . | . . . . Hacking Detections . | . . . . Full Trace Events . | . . . . Feedback Events . | . . . . Feedback Blocked . | . . . . Robot Schematics Acquired . | . . . . Robots Built . | . . . . Authchips . | . . . . Time . | . . . . Total Robot Build Rating . | . . . . Part Schematics Acquired . | . . . . Parts Built . | . . . . Authchips . | . . . . Time . | . . . . Total Part Build Rating . | . . . . Parts Repaired . | . . . . Time . | . . . . Parts Recycled . | . . . . Recycled Matter . | . . . . Retrieved Matter . | . . . . Retrieved Components . | . . . . Parts Scanalyzed . | . . . . Part Schematics Acquired . | . . . . Parts Damaged . | . . . . Bothacking | -11 -10 -10 -7 ------------ Run | Yrd Mat Sub Scr Used RIF Installer . | . . . . Robots Hacked . | . . . . Non-combat . | . . . . Combat . | . . . . Robot Hacks Applied . | . . . . Relay Couplers Released . | . . . . Fabnet Peak Effective % . | . . . . Robots Rewired . | . . . . Allies Hacked . | . . . . Hacks Repelled . | . . . . Allies | -11 -10 -10 -7 -------- Run | Yrd Mat Sub Scr Total Allies . | . . . . Largest Group . | . . . . Highest-Rated Group . | . . . . Highest-Rated Ally . | . . . . Total Orders . | . . . . Ally Attacks . | . . . . Total Damage . | . . . . Kills . | . . . . Allies Corrupted . | . . . . Allies Melted . | . . . . Intel | -11 -10 -10 -7 ------- Run | Yrd Mat Sub Scr Active Infowar (turns) . | . . . . Robot Analysis Total . | . . . . Derelict Logs Recovered . | . . . . Drone Launches . | . . . . Drone Recoveries . | . . . . Exploration | -11 -10 -10 -7 ------------- Run | Yrd Mat Sub Scr Turns Passed 1121 | 86 167 296 572 Spaces Moved 1186 | 73 125 196 792 Core 16 | 16 . . . Treads . | . . . . Legs . | . . . . Wheels 854 | 57 125 196 476 Hover . | . . . . Flight 316 | . . . 316 Fastest Speed 40 | 50 80 80 40 Average Speed 68 | 73 80 80 64 Slowest Speed 80 | 80 80 80 80 Overloaded Moves . | . . . . Propulsion Burnouts . | . . . . Robots Hopped 7 | . . . 7 Potential Cave-ins . | . . . . Cave-ins Triggered . | . . . . Exploration Rate (%) 26 | 6 29 10 59 Regions Visited 3 Branch Regions 2 Pre-discovered Areas 1 | . . . 1 Known Exits Taken . | . . . . Unknown Exits Taken 3 | 1 1 1 . Scrap Searched 1 | . . . 1 Spaces Dug . | . . . . Terrain Destroyed . | . . . . Melee . | . . . . Projectile . | . . . . AOE . | . . . . Terrain Rammed . | . . . . Walls Destroyed . | . . . . Machines Disabled . | . . . . Actions | -11 -10 -10 -7 --------- Run | Yrd Mat Sub Scr Total 1458 | 95 187 332 844 Wait 213 | . 56 137 20 Move 1172 | 72 124 195 781 Hop 4 | . . . 4 Pick Up 18 | 10 2 . 6 Fast Attach 1 | . . . 1 Attach 11 | 6 . . 5 Detach 3 | . . . 3 Swap 4 | . 2 . 2 Drop 11 | . 1 . 10 Fire 21 | 7 2 . 12 Melee . | . . . . Ram . | . . . . Kick . | . . . . Crush . | . . . . Escape Stasis . | . . . . Rewire . | . . . . Trap . | . . . . Miscellaneous . | . . . . Route ------- -11/Scrapyard -10/Materials -10/Subcaves (discovered 2 exits: Rec / *Scr) -7/Scraptown (discovered 1 exit: [*Fac]) History --------- Turn | Location | Event 2 | -11/Scrapyard | Met Revision 17 60 | -11/Scrapyard | Discovered new exit (range 8) 87 | -11/Scrapyard | Entered Materials 88 | -10/Materials | Met a group of wandering Federalists 132 | -10/Materials | Discovered new exit (range 8) 254 | -10/Materials | Entered Subcaves 254 | -10/Subcaves | Accompanied by 3 allies 255 | -10/Subcaves | Continued accompanying wandering Federalists (5) 255 | -10/Subcaves | Approached by a straggling Scientist 314 | -10/Subcaves | Build established: Mutant 406 | -10/Subcaves | Visited Clippyterm 409 | -10/Subcaves | Identified exit to Recycling 409 | -10/Subcaves | Learned Factory stockpile data 515 | -10/Subcaves | Shifting Twisted Machinery released Mak. Light Armor Plating 519 | -10/Subcaves | Shifting Twisted Machinery released Scrap Shield 527 | -10/Subcaves | Wandering Federalist uncovered a shortcut to Scraptown 550 | -10/Subcaves | Entered Scraptown 593 | -7/Scraptown | Learned location of Extension (-4) 640 | -7/Scraptown | Received an X-ray algorithm 661 | -7/Scraptown | Ran an X-ray algorithm 661 | -7/Scraptown | Ran an X-ray algorithm 753 | -7/Scraptown | Discovered new exit (range 5) 863 | -7/Scraptown | Visited Cyclists 887 | -7/Scraptown | Visited Shadow of the Wyrm 921 | -7/Scraptown | Visited Bundlers 975 | -7/Scraptown | Visited UFD Registry 975 | -7/Scraptown | Registered with UFD as "Megabay" 993 | -7/Scraptown | Visited Infowarlord's Domain 1020 | -7/Scraptown | Met Optimus 1020 | -7/Scraptown | Accepted into 0bPrime 1042 | -7/Scraptown | Civil war broke out across Scraptown 1069 | -7/Scraptown | Found Scrap Suit 1114 | -7/Scraptown | Core integrity fell below 50% 1119 | -7/Scraptown | Core integrity fell below 20% 1122 | -7/Scraptown | Destroyed by S4-EIT(j) with Overtuned Pulse Rifle Last Messages --------------- HV Slug penetrates Wall. HV Slug penetrates EV-NN0(E). L7-G4F(E) destroyed. PJ-WQ0(E) destroyed. HZ-GP0(j) suffers critical hit (Destroy). HZ-GP0(j) destroyed. ZJ-GVN(E) destroyed. Acquired 49 matter. 5G-5G3(j) cannibalizes Ovr. Titanium Leg to repair Ovr. Titanium Leg. Dropped Lgt. Ion Engine. Acquired Scrap Suit. J0-VW1(p) switches sides. Lgt. Ion Engine destroyed. Particle Gun destroyed. Overheating: Energy bleed (-17). 7G-EN2(x) suffers critical hit (Burn). Nuclear Pulse Thruster destroyed. Particle Gun destroyed. Critical hit (Burn: +50). Map ----- +----------------------------------------------------+ | | | | | | | | | | | | | | | | | ?????????????????????????????????????????????????? | | ?????????????????????????????????????????????????? | | ?????????????????????????????????????????????????? | | ?????????????????????????????????????????????????? | | ?????????????????????????????????????????????????? | | ?????????????????????????????????????????????????? | | ?????????????????????????????????????????????????? | | ?????????????????????????????????????????????????? | | ?????????????????????????????????????????????????? | | ?????????????????????????????????????????????????? | | ?????????????????????????????????????????????????? | | ?????????????????????????????????????????????????? | | ?????????????????????????????????????????????????? | | ?????????????????????###################???####??? | | ????????????????????#"""##"""##""|##"""#??## ##?? | | ????????????????????#"" ##""!##""|##! "#### =### | | ????????????????????#"" xjj * ! ! =!!%= | | ????????????????????# j@ =! [![!= | | ????????????????????####################### *### | | ??????????????????????????????????????????## ##?? | | ???????????????????????????????????????????# #??? | | ???????????????????????????????????????????# #??? | | ???????????????????????????????????????????# #??? | | ???????????????????????????????????????????# #??? | | ???????????????????????????????????????????# #??? | | ???????????????????????????????????????????# #??? | | ???????????????????????????????????????????# #??? | | ???????????????????????????????????????????# #??? | | ???????????????????????????????????????????# #??? | | ???????????????????????????????????????????# #??? | | ???????????????????????????????????????????# #? | | ????????????????????????????????????? ?????" #?"" | | ?????????????????????????????????????# ????# #? # | | #????????????????????????? ???????#### ##### ## # | | #????????????????????"""" "???""""""" """"" "" " | | #?????????????????? " | | #????????????????? " | | #?????????????????? ! " | | #??????????????????? !%= " | | #??????????????????? = | | #???????? ????????""""""""?""""""""""""" " | | #???????? ???????"""""??????"""""""""" " | +----------------------------------------------------+ Best States ------------- Heat Dissipation 47 Energy Generation 10 Energy Capacity 125 Matter Stores 400 Matter Capacity 650 Sight Range 16 Terrain Scan Density 10 Evasion (%) 62 Defensive Hacking 12 Item Schematics ----------------- None Robot Schematics ------------------ None Fabricated ------------ Nothing Repaired ---------- Nothing Alien Tech Used ----------------- None Achievements -------------- None Challenges ------------ None Game ------ Seed UltimateGhostSpecial Manual? 0 Play Time 00:43:38 Cumulative 5.2 hours Start 2025.06.18 @ 23:40:42 End 2025.06.19 @ 00:28:09 Sessions 1 Manual Loads 0 Difficulty Rogue Special Mode None Game No. 6 Rogue 6 Adventurer 0 Explorer 0 Win Type - Total 0 Types 0/0/0/0/0/0/0/0/0/0 Lore% 8 Gallery% 7 Achievement% 8 Wizard Run 0 Options --------- Layout 1 ASCII 0 Keyboard 0 Movement Mouse Keybinds 0 Fullscreen 1 Font 16/SmallcapsGlow Map View 55x38 Zoom Use 0% Tactical HUD 0 Map Filters NONE Filters NONE Steam 1 RUN: 2a54972b-8624-4b37-b3f8-a0794c54d8b0